fUSD/lending_fUSD_20250525
["ID","MTS","AMOUNT","RATE_DAILY","PERIOD"]
[362336639,1748203842839,-420.0,0.00019999,2]
[362336640,1748203842849,-420.0,0.00019999,2]
[362336641,1748203842859,-420.0,0.00019999,2]
[362336642,1748203842868,-420.0,0.00019999,2]
[362336643,1748203842879,-192.9,0.00019999,2]
[362336644,1748203842889,-420.0,0.00019999,2]
[362336645,1748203842898,-360.0,0.00019999,2]
[362336646,1748203842908,-420.0,0.00019999,2]
[362336647,1748203842919,-424.3500891,0.00019999,2]
[362336650,1748203842928,-427.69842343,0.00019999,2]
[362336651,1748203842938,-163.97905091,0.00019999,2]
[362336652,1748203842948,-420.0,0.00019999,2]
[362336653,1748203842961,-420.0,0.00019999,2]
[362336654,1748203842971,-420.0,0.00019999,2]
[362336655,1748203842980,-494.76,0.00019999,2]
[362336656,1748203842990,-421.93691955,0.00019999,2]
[362336657,1748203842999,-431.18,0.00019999,2]
[362336658,1748203843008,-420.78204525,0.00019999,2]
[362336659,1748203843018,-420.0,0.00019999,2]
[362336660,1748203843027,-420.0,0.00019999,2]
[362336661,1748203843036,-420.0,0.00019999,2]
[362336662,1748203843046,-420.0,0.00019999,2]
[362336663,1748203843055,-420.0,0.00019999,2]
[362336665,1748203843065,-420.0,0.00019999,2]
[362336667,1748203843075,-463.44,0.00019999,2]
[362336669,1748203843084,-400.53,0.00019999,2]
[362336671,1748203843093,-420.0,0.00019999,2]
[362336673,1748203843102,-420.0,0.00019999,2]
[362336675,1748203843112,-333.76111016,0.00019999,2]
[362336677,1748203843121,-420.0,0.00019999,2]
[362336679,1748203843131,-380.0,0.00019999,2]
[362336680,1748203843141,-420.0,0.00019999,2]
[362336682,1748203843150,-420.0,0.00019999,2]
[362336684,1748203843159,-386.79,0.00019999,2]
[362336686,1748203843168,-422.95597573,0.00019999,2]
[362336689,1748203843177,-430.64669506,0.00019999,2]
[362336691,1748203843187,-380.0,0.00019999,2]
[362336693,1748203843196,-420.0,0.00019999,2]
[362336695,1748203843205,-269.1,0.00019999,2]
[362336697,1748203843215,-513.8,0.00019999,2]
[362336699,1748203843224,-420.0,0.00019999,2]
[362336701,1748203843233,-421.57631457,0.00019999,2]
[362336703,1748203843242,-420.0,0.00019999,2]
[362336704,1748203843252,-420.0,0.00019999,2]
[362336706,1748203843261,-408.85,0.00019999,2]
[362336708,1748203843270,-420.0,0.00019999,2]
[362336710,1748203843280,-420.0,0.00019999,2]
[362336712,1748203843289,-420.0,0.00019999,2]
[362336714,1748203843299,-225.8,0.00019999,2]
[362336716,1748203843308,-420.0,0.00019999,2]
[362336718,1748203843318,-420.0,0.00019999,2]
[362336720,1748203843327,-420.0,0.00019999,2]
[362336722,1748203843337,-420.0,0.00019999,2]
[362336724,1748203843346,-421.16965508,0.00019999,2]
[362336726,1748203843355,-420.0,0.00019999,2]
[362336728,1748203843365,-420.0,0.00019999,2]
[362336730,1748203843374,-420.0,0.00019999,2]
[362336732,1748203843383,-420.0,0.00019999,2]
[362336734,1748203843392,-281.16,0.00019999,2]
[362336736,1748203843402,-420.0,0.00019999,2]
[362336738,1748203843411,-420.0,0.00019999,2]
[362336740,1748203843420,-420.0,0.00019999,2]
[362336741,1748203843429,-420.0,0.00019999,2]
[362336743,1748203843439,-420.0,0.00019999,2]
[362336745,1748203843448,-296.64461438,0.00019999,2]
[362336747,1748203843458,-421.78895866,0.00019999,2]
[362336749,1748203843467,-513.95030348,0.00019999,2]
[362336751,1748203843477,-309.17496927,0.00019999,2]
[362336753,1748203843487,-420.0,0.00019999,2]
[362336755,1748203843496,-500.0,0.00019999,2]
[362336757,1748203843506,-500.0,0.00019999,2]
[362336758,1748203843515,-424.17008544,0.00019999,2]
[362336759,1748203843524,-380.0,0.00019999,2]
[362336760,1748203843535,-420.0,0.00019999,2]
[362336761,1748203843544,-420.0,0.00019999,2]
[362336762,1748203843554,-420.0,0.00019999,2]
[362336763,1748203843563,-410.1,0.00019999,2]
[362336764,1748203843575,-420.0,0.00019999,2]
[362336765,1748203843584,-420.0,0.00019999,2]
[362336766,1748203843594,-420.0,0.00019999,2]
[362336767,1748203843604,-409.2,0.00019999,2]
[362336768,1748203843614,-380.0,0.00019999,2]
[362336769,1748203843624,-420.0,0.00019999,2]
[362336770,1748203843635,-428.20541809,0.00019999,2]
[362336771,1748203843645,-420.0,0.00019999,2]
[362336772,1748203843654,-411.68,0.00019999,2]
[362336773,1748203843664,-292.19251358,0.00019999,2]
[362336774,1748203843674,-380.0,0.00019999,2]
[362336775,1748203843684,-420.0,0.00019999,2]
[362336776,1748203843693,-420.0,0.00019999,2]
[362336777,1748203843703,-380.0,0.00019999,2]
[362336778,1748203843713,-420.0,0.00019999,2]
[362336779,1748203843722,-420.0,0.00019999,2]
[362336780,1748203843730,-380.0,0.00019999,2]
[362336781,1748203843739,-380.0,0.00019999,2]
[362336782,1748203843749,-376.96924576,0.00019999,2]
[362336783,1748203843757,-411.11,0.00019999,2]
[362336784,1748203843766,-158.03861783,0.00019999,2]
[362336785,1748203843775,-420.0,0.00019999,2]
[362336786,1748203843789,-421.42798674,0.00019999,2]
[362336787,1748203843805,-420.0,0.00019999,2]
[362336788,1748203843818,-420.0,0.00019999,2]
[362336789,1748203843830,-420.0,0.00019999,2]
[362336790,1748203843841,-420.0,0.00019999,2]
[362336791,1748203843854,-420.0,0.00019999,2]
[362336792,1748203843868,-420.0,0.00019999,2]
[362336793,1748203843882,-420.0,0.00019999,2]
[362336794,1748203843895,-420.0,0.00019999,2]
[362336795,1748203843909,-317.78,0.00019999,2]
[362336796,1748203843921,-420.0,0.00019999,2]
[362336797,1748203843932,-420.0,0.00019999,2]
[362336798,1748203843945,-401.24,0.00019999,2]
[362336799,1748203843955,-420.0,0.00019999,2]
[362336800,1748203843969,-420.0,0.00019999,2]
[362336801,1748203843981,-420.0,0.00019999,2]
[362336802,1748203843994,-288.4,0.00019999,2]
[362336803,1748203844007,-420.0,0.00019999,2]
[362336804,1748203844020,-420.0,0.00019999,2]
[362336805,1748203844033,-420.0,0.00019999,2]
[362336806,1748203844047,-476.26,0.00019999,2]
[362336807,1748203844059,-420.0,0.00019999,2]
[362336808,1748203844072,-515.24,0.00019999,2]
[362336809,1748203844086,-420.0,0.00019999,2]
[362336810,1748203844098,-420.0,0.00019999,2]
[362336811,1748203844110,-420.0,0.00019999,2]
[362336812,1748203844122,-420.0,0.00019999,2]
[362336813,1748203844134,-420.0,0.00019999,2]
[362336814,1748203844146,-420.0,0.00019999,2]
[362336815,1748203844159,-420.0,0.00019999,2]
[362336816,1748203844173,-420.0,0.00019999,2]
[362336817,1748203844185,-420.0,0.00019999,2]
[362336818,1748203844196,-420.0,0.00019999,2]
[362336819,1748203844208,-420.0,0.00019999,2]
[362336820,1748203844219,-394.44528992,0.00019999,2]
[362336821,1748203844229,-372.28,0.00019999,2]
[362336822,1748203844242,-209.51879719,0.00019999,2]
[362336823,1748203844255,-420.0,0.00019999,2]
[362336824,1748203844269,-1000.0,0.00019999,2]
[362336825,1748203844279,-268.18636324,0.00019999,2]
[362336826,1748203844290,-420.0,0.00019999,2]
[362336827,1748203844300,-420.0,0.00019999,2]
[362336828,1748203844312,-420.0,0.00019999,2]
[362336829,1748203844325,-420.0,0.00019999,2]
[362336830,1748203844339,-420.0,0.00019999,2]
[362336831,1748203844350,-254.57629733,0.00019999,2]
[362336832,1748203844360,-420.0,0.00019999,2]
[362336833,1748203844371,-444.38068069,0.00019999,2]
[362336834,1748203844382,-420.0,0.00019999,2]
[362336835,1748203844394,-420.0,0.00019999,2]
[362336836,1748203844406,-420.0,0.00019999,2]
[362336837,1748203844417,-420.0,0.00019999,2]
[362336838,1748203844429,-420.0,0.00019999,2]
[362336839,1748203844441,-420.0,0.00019999,2]
[362336840,1748203844453,-420.0,0.00019999,2]
[362336841,1748203844465,-420.0,0.00019999,2]
[362336842,1748203844477,-247.5,0.00019999,2]
[362336843,1748203844488,-469.56,0.00019999,2]
[362336844,1748203844500,-420.0,0.00019999,2]
[362336845,1748203844511,-420.0,0.00019999,2]
[362336846,1748203844523,-353.46,0.00019999,2]
[362336847,1748203844534,-289.65165052,0.00019999,2]
[362336848,1748203844545,-420.0,0.00019999,2]
[362336849,1748203844557,-420.0,0.00019999,2]
[362336850,1748203844568,-420.0,0.00019999,2]
[362336851,1748203844580,-420.0,0.00019999,2]
[362336852,1748203844593,-297.0,0.00019999,2]
[362336853,1748203844605,-380.0,0.00019999,2]
[362336854,1748203844616,-420.0,0.00019999,2]
[362336855,1748203844627,-420.0,0.00019999,2]
[362336856,1748203844639,-420.0,0.00019999,2]
[362336857,1748203844649,-420.0,0.00019999,2]
[362336858,1748203844660,-420.0,0.00019999,2]
[362336859,1748203844671,-420.0,0.00019999,2]
[362336860,1748203844682,-181.72,0.00019999,2]
[362336861,1748203844693,-244.78,0.00019999,2]
[362336862,1748203844705,-371.62,0.00019999,2]
[362336863,1748203844716,-285.58,0.00019999,2]
[362336864,1748203844728,-420.0,0.00019999,2]
[362336865,1748203844739,-420.0,0.00019999,2]
[362336866,1748203844751,-420.0,0.00019999,2]
[362336867,1748203844763,-420.0,0.00019999,2]
[362336868,1748203844774,-316.59215864,0.00019999,2]
[362336869,1748203844786,-420.0,0.00019999,2]
[362336870,1748203844797,-237.49422078,0.00019999,2]
[362336871,1748203844809,-276.8703258,0.00019999,2]
[362336872,1748203844820,-420.0,0.00019999,2]
[362336873,1748203844831,-205.02,0.00019999,2]
[362336874,1748203844842,-392.14,0.00019999,2]
[362336875,1748203844854,-420.0,0.00019999,2]
[362336876,1748203844865,-509.44,0.00019999,2]
[362336877,1748203844879,-223.52,0.00019999,2]
[362336878,1748203844893,-420.0,0.00019999,2]
[362336879,1748203844906,-420.0,0.00019999,2]
[362336880,1748203844918,-420.0,0.00019999,2]
[362336881,1748203844931,-420.0,0.00019999,2]
[362336882,1748203844943,-420.0,0.00019999,2]
[362336883,1748203844955,-420.0,0.00019999,2]
[362336884,1748203844967,-317.78,0.00019999,2]
[362336885,1748203844978,-420.0,0.00019999,2]
[362336886,1748203844992,-420.0,0.00019999,2]
[362336887,1748203845003,-420.0,0.00019999,2]
[362336888,1748203845014,-180.66,0.00019999,2]
[362336889,1748203845025,-2000.0,0.00019999,2]
[362336890,1748203845037,-359.84,0.00019999,2]
[362336891,1748203845048,-420.0,0.00019999,2]
[362336892,1748203845059,-420.0,0.00019999,2]
[362336893,1748203845070,-420.0,0.00019999,2]
[362336894,1748203845081,-420.0,0.00019999,2]
[362336895,1748203845093,-420.0,0.00019999,2]
[362336896,1748203845104,-420.0,0.00019999,2]
[362336897,1748203845116,-420.0,0.00019999,2]
[362336898,1748203845127,-420.0,0.00019999,2]
[362336899,1748203845139,-420.0,0.00019999,2]
[362336900,1748203845150,-420.0,0.00019999,2]
[362336901,1748203845162,-420.0,0.00019999,2]
[362336902,1748203845174,-420.0,0.00019999,2]
[362336903,1748203845186,-420.0,0.00019999,2]
[362336904,1748203845197,-420.0,0.00019999,2]
[362336905,1748203845208,-420.0,0.00019999,2]
[362336906,1748203845220,-420.0,0.00019999,2]
[362336907,1748203845231,-420.0,0.00019999,2]
[362336908,1748203845242,-341.91377982,0.00019999,2]
[362336909,1748203845253,-500.0,0.00019999,2]
[362336911,1748203845264,-420.0,0.00019999,2]
[362336912,1748203845275,-420.0,0.00019999,2]
[362336913,1748203845285,-420.0,0.00019999,2]
[362336914,1748203845296,-420.0,0.00019999,2]
[362336915,1748203845307,-420.0,0.00019999,2]
[362336916,1748203845318,-420.0,0.00019999,2]
[362336917,1748203845329,-420.0,0.00019999,2]
[362336918,1748203845340,-420.0,0.00019999,2]
[362336919,1748203845351,-420.0,0.00019999,2]
[362336920,1748203845362,-420.0,0.00019999,2]
[362336921,1748203845374,-420.0,0.00019999,2]
[362336922,1748203845385,-420.0,0.00019999,2]
[362336923,1748203845397,-420.0,0.00019999,2]
[362336924,1748203845411,-420.0,0.00019999,2]
[362336925,1748203845424,-420.0,0.00019999,2]
[362336926,1748203845437,-420.0,0.00019999,2]
[362336927,1748203845450,-329.02103494,0.00019999,2]
[362336928,1748203845462,-324.80789805,0.00019999,2]
[362336929,1748203845474,-420.0,0.00019999,2]
[362336930,1748203845486,-420.0,0.00019999,2]
[362336931,1748203845498,-420.0,0.00019999,2]
[362336932,1748203845510,-420.0,0.00019999,2]
[362336933,1748203845522,-420.0,0.00019999,2]
[362336934,1748203845534,-420.0,0.00019999,2]
[362336935,1748203845544,-420.0,0.00019999,2]
[362336936,1748203845554,-420.0,0.00019999,2]
[362336937,1748203845564,-420.0,0.00019999,2]
[362336938,1748203845573,-420.0,0.00019999,2]
[362336939,1748203845582,-420.0,0.00019999,2]
[362336940,1748203845591,-420.0,0.00019999,2]
[362336941,1748203845601,-420.0,0.00019999,2]
[362336942,1748203845610,-420.0,0.00019999,2]
[362336943,1748203845619,-420.0,0.00019999,2]
[362336944,1748203845628,-420.0,0.00019999,2]
[362336945,1748203845638,-420.0,0.00019999,2]
[362336946,1748203845647,-420.0,0.00019999,2]
[362336947,1748203845656,-341.44,0.00019999,2]
[362336948,1748203845666,-420.0,0.00019999,2]
[362336949,1748203845675,-420.0,0.00019999,2]
[362336950,1748203845684,-420.0,0.00019999,2]
[362336951,1748203845694,-420.0,0.00019999,2]
[362336952,1748203845703,-420.0,0.00019999,2]
[362336953,1748203845712,-420.0,0.00019999,2]
[362336954,1748203845721,-420.0,0.00019999,2]
[362336955,1748203845730,-420.0,0.00019999,2]
[362336956,1748203845739,-474.24,0.00019999,2]
[362336957,1748203845748,-420.0,0.00019999,2]
[362336958,1748203846024,-420.0,0.00019999,2]
[362336959,1748203846045,-539.16,0.00019999,2]
[362336960,1748203846055,-420.0,0.00019999,2]
[362336961,1748203846064,-420.0,0.00019999,2]
[362336962,1748203846074,-420.0,0.00019999,2]
[362336963,1748203846085,-288.4,0.00019999,2]
[362336964,1748203846095,-420.0,0.00019999,2]
[362336965,1748203846104,-420.0,0.00019999,2]
[362336966,1748203846114,-420.0,0.00019999,2]
[362336967,1748203846123,-456.51109403,0.00019999,2]
[362336968,1748203846133,-420.0,0.00019999,2]
[362336969,1748203846142,-420.0,0.00019999,2]
[362336970,1748203846153,-420.0,0.00019999,2]
[362336971,1748203846162,-420.0,0.00019999,2]
[362336972,1748203846171,-420.0,0.00019999,2]
[362336973,1748203846180,-420.0,0.00019999,2]
[362336974,1748203846190,-420.0,0.00019999,2]
[362336975,1748203846198,-420.0,0.00019999,2]
[362336976,1748203846208,-420.0,0.00019999,2]
[362336977,1748203846218,-264.5,0.00019999,2]
[362336978,1748203846227,-420.0,0.00019999,2]
[362336979,1748203846236,-420.0,0.00019999,2]
[362336980,1748203846246,-420.0,0.00019999,2]
[362336981,1748203846255,-420.0,0.00019999,2]
[362336982,1748203846265,-451.06,0.00019999,2]
[362336983,1748203846274,-420.0,0.00019999,2]
[362336984,1748203846283,-420.0,0.00019999,2]
[362336985,1748203846293,-420.0,0.00019999,2]
[362336986,1748203846303,-420.0,0.00019999,2]
[362336987,1748203846314,-420.0,0.00019999,2]
[362336988,1748203846323,-420.0,0.00019999,2]
[362336989,1748203846332,-151.56,0.00019999,2]
[362336990,1748203846342,-420.0,0.00019999,2]
[362336991,1748203846351,-420.0,0.00019999,2]
[362336992,1748203846361,-162.7,0.00019999,2]
[362336993,1748203846370,-420.0,0.00019999,2]
[362336994,1748203846379,-420.0,0.00019999,2]
[362336995,1748203846389,-420.0,0.00019999,2]
[362336996,1748203846398,-420.0,0.00019999,2]
[362336997,1748203846408,-420.0,0.00019999,2]
[362336998,1748203846417,-420.0,0.00019999,2]
[362336999,1748203846426,-501.18,0.00019999,2]
[362337000,1748203846436,-420.0,0.00019999,2]
[362337001,1748203846446,-420.0,0.00019999,2]
[362337002,1748203846455,-402.17789684,0.00019999,2]
[362337003,1748203846464,-420.0,0.00019999,2]
[362337004,1748203846474,-420.0,0.00019999,2]
[362337005,1748203846484,-420.0,0.00019999,2]
[362337006,1748203846494,-420.0,0.00019999,2]
[362337007,1748203846503,-420.0,0.00019999,2]
[362337008,1748203846513,-420.0,0.00019999,2]
[362337009,1748203846522,-420.0,0.00019999,2]
[362337010,1748203846532,-420.0,0.00019999,2]
[362337011,1748203846541,-420.0,0.00019999,2]
[362337013,1748203846551,-420.0,0.00019999,2]
[362337014,1748203846560,-449.2,0.00019999,2]
[362337016,1748203846570,-420.0,0.00019999,2]
[362337018,1748203846579,-420.0,0.00019999,2]
[362337020,1748203846588,-420.0,0.00019999,2]
[362337022,1748203846597,-420.0,0.00019999,2]
[362337024,1748203846606,-232.04408091,0.00019999,2]
[362337026,1748203846615,-329.64,0.00019999,2]
[362337028,1748203846626,-429.08,0.00019999,2]
[362337030,1748203846636,-429.08,0.00019999,2]
[362337032,1748203846645,-429.08,0.00019999,2]
[362337034,1748203846654,-429.08,0.00019999,2]
[362337035,1748203846663,-429.08,0.00019999,2]
[362337037,1748203846673,-429.08,0.00019999,2]
[362337039,1748203846682,-429.08,0.00019999,2]
[362337041,1748203846693,-429.08,0.00019999,2]
[362337043,1748203846702,-429.08,0.00019999,2]
[362337045,1748203846715,-429.08,0.00019999,2]
[362337047,1748203846725,-429.08,0.00019999,2]
[362337049,1748203846735,-429.08,0.00019999,2]
[362337051,1748203846744,-429.08,0.00019999,2]
[362337053,1748203846753,-420.0,0.00019999,2]
[362337055,1748203846763,-429.08,0.00019999,2]
[362337057,1748203846772,-420.0,0.00019999,2]
[362337059,1748203846781,-429.08,0.00019999,2]
[362337061,1748203846792,-420.0,0.00019999,2]
[362337063,1748203846801,-429.08,0.00019999,2]
[362337065,1748203846811,-491.39,0.00019999,2]
[362337067,1748203846820,-429.08,0.00019999,2]
[362337069,1748203846830,-429.08,0.00019999,2]
[362337071,1748203846839,-429.08,0.00019999,2]
[362337073,1748203846849,-429.1,0.00019999,2]
[362337075,1748203846858,-420.0,0.00019999,2]
[362337077,1748203846867,-420.0,0.00019999,2]
[362337078,1748203846879,-420.0,0.00019999,2]
[362337079,1748203846890,-286.24,0.00019999,2]
[362337080,1748203846899,-420.0,0.00019999,2]
[362337081,1748203846908,-420.0,0.00019999,2]
[362337082,1748203846919,-420.0,0.00019999,2]
[362337083,1748203846928,-420.0,0.00019999,2]
[362337084,1748203846938,-560.36,0.00019999,2]
[362337085,1748203846946,-420.0,0.00019999,2]
[362337086,1748203846958,-312.44,0.00019999,2]
[362337087,1748203846968,-1102.18,0.00019999,2]
[362337088,1748203846979,-1102.18,0.00019999,2]
[362337089,1748203846988,-1102.18,0.00019999,2]
[362337090,1748203846998,-1102.18,0.00019999,2]
[362337091,1748203847007,-1102.18,0.00019999,2]
[362337092,1748203847016,-1102.18,0.00019999,2]
[362337094,1748203847025,-1102.18,0.00019999,2]
[362337096,1748203847035,-1102.18,0.00019999,2]
[362337098,1748203847045,-1102.18,0.00019999,2]
[362337100,1748203847055,-1102.18,0.00019999,2]
[362337102,1748203847063,-1102.18,0.00019999,2]
[362337104,1748203847072,-1102.18,0.00019999,2]
[362337105,1748203847081,-1102.18,0.00019999,2]
[362337107,1748203847091,-1102.18,0.00019999,2]
[362337109,1748203847100,-1102.18,0.00019999,2]
[362337111,1748203847110,-1102.18,0.00019999,2]
[362337113,1748203847119,-1102.18,0.00019999,2]
[362337115,1748203847128,-1102.18,0.00019999,2]
[362337117,1748203847138,-420.0,0.00019999,2]
[362337119,1748203847147,-359.01,0.00019999,2]
[362337120,1748203847157,-1102.18,0.00019999,2]
[362337121,1748203847167,-1102.2,0.00019999,2]
[362337122,1748203847176,-420.0,0.00019999,2]
[362337123,1748203847185,-334.84,0.00019999,2]
[362337124,1748203847195,-420.0,0.00019999,2]
[362337125,1748203847204,-420.0,0.00019999,2]
[362337126,1748203847214,-420.0,0.00019999,2]
[362337127,1748203847223,-420.0,0.00019999,2]
[362337128,1748203847232,-420.0,0.00019999,2]
[362337129,1748203847241,-420.0,0.00019999,2]
[362337130,1748203847250,-420.0,0.00019999,2]
[362337131,1748203847259,-420.0,0.00019999,2]
[362337132,1748203847268,-527.14,0.00019999,2]
[362337133,1748203847277,-420.0,0.00019999,2]
[362337134,1748203847287,-420.0,0.00019999,2]
[362337135,1748203847297,-318.82,0.00019999,2]
[362337136,1748203847307,-455.48142087,0.00019999,2]
[362337137,1748203847316,-4098.6,0.00019999,2]
[362337138,1748203847326,-4098.6,0.00019999,2]
[362337139,1748203847336,-4098.6,0.00019999,2]
[362337140,1748203847345,-4098.6,0.00019999,2]
[362337141,1748203847355,-4098.6,0.00019999,2]
[362337142,1748203847364,-4098.6,0.00019999,2]
[362337143,1748203847373,-4098.6,0.00019999,2]
[362337144,1748203847382,-4098.6,0.00019999,2]
[362337145,1748203847392,-4098.6,0.00019999,2]
[362337146,1748203847402,-4098.6,0.00019999,2]
[362337147,1748203847411,-4098.6,0.00019999,2]
[362337148,1748203847421,-4098.6,0.00019999,2]
[362337149,1748203847430,-4098.6,0.00019999,2]
[362337150,1748203847440,-4098.6,0.00019999,2]
[362337151,1748203847450,-4098.6,0.00019999,2]
[362337152,1748203847460,-4098.6,0.00019999,2]
[362337153,1748203847470,-4098.6,0.00019999,2]
[362337154,1748203847479,-4098.6,0.00019999,2]
[362337155,1748203847489,-4098.6,0.00019999,2]
[362337156,1748203847498,-4098.62309056,0.00019999,2]
[362337157,1748203847507,-150.0,0.0002,2]
[362337158,1748203847517,-150.0,0.0002,2]
[362337159,1748203847526,-1311.0,0.0002,2]
[362337160,1748203847536,-938.0,0.0002,2]
[362337161,1748203847550,-632.0,0.0002,2]
[362337162,1748203847560,-1463.0,0.0002,2]
[362337163,1748203847570,-1263.0,0.0002,2]
[362337164,1748203847579,-922.0,0.0002,2]
[362337165,1748203847589,-586.0,0.0002,2]
[362337166,1748203847599,-555.0,0.0002,2]
[362337167,1748203847609,-34326.79298567,0.0002,2]
[362337168,1748203847644,-586.98352101,0.0002,2]
[362337169,1748203847871,-831.54289041,0.00018922,2]
[362337170,1748203847885,-831.54289041,0.00019315,2]
[362337171,1748203847895,-831.54289041,0.00019466,2]
[362337172,1748203847907,-840.0,0.00019691,2]
[362337173,1748203847916,-831.54289042,0.00019745,2]
[362337174,1748203847927,-420.0,0.00019992,2]
[362337175,1748203847938,-421.80727078,0.00019993,2]
[362337176,1748203847947,-4155.51594382,0.0002,2]
[362337177,1748203848155,-344.20831651,0.0002,2]
[362337178,1748203848167,-584.78514729,0.0002,2]
[362337179,1748203848178,-2101.75976284,0.0002,2]
[362337180,1748203848188,-3229.25396911,0.0002,2]
[362337181,1748203848199,-4618.84302803,0.0002,2]
[362337182,1748203848210,-277.595,0.0002,2]
[362337183,1748203848221,-3335.00000002,0.0002,2]
[362337184,1748203848232,-42536.81613577,0.0002,2]
[362337185,1748203848243,-1222.56000018,0.0002,2]
[362337186,1748203848254,-351.90094036,0.0002,2]
[362337187,1748203848265,-45899.1694175,0.0002,2]
[362337188,1748203848275,-1567.92316173,0.0002,2]
[362337189,1748203848286,-8711.51327675,0.0002,2]
[362337190,1748203848302,-995.29146196,0.0002,2]
[362337191,1748203848313,-1771.25319966,0.0002,2]
[362337192,1748203848365,-5513.94776946,0.0002,2]
[362337193,1748203848378,-565.72286452,0.0002,2]
[362337194,1748203848466,-71.58906667,0.0002,2]
[362337195,1748203848478,-5499.96600732,0.0002,2]
[362337196,1748203848489,-228262.25547391,0.0002,2]
[362337197,1748203848509,-866.38249894,0.0002,2]
[362337198,1748203848520,-1729.85740307,0.0002,2]
[362337199,1748203848531,-1882.98976491,0.0002,2]
[362337200,1748203848543,-1090.54949984,0.0002,2]
[362337201,1748203848555,-321.648741,0.0002,2]
[362337202,1748203848566,-1352.25,0.0002,2]
[362337203,1748203848578,-2449.87742272,0.0002,2]
[362337204,1748203848590,-500.0,0.0002,2]
[362337205,1748203848601,-6218.43599019,0.0002,2]
[362337206,1748203848613,-532174.48555423,0.0002,2]
[362337207,1748203848689,-104.51378131,0.0002,2]
[362337208,1748203848700,-547.0,0.0002,2]
[362337209,1748203848711,-4186.02301595,0.0002,2]
[362337210,1748203848769,-15431.11589186,0.0002,2]
[362337211,1748203848782,-38047.29282731,0.0002,2]
[362337212,1748203848794,-302.0,0.0002,2]
[362337213,1748203848805,-907.84150662,0.0002,2]
[362337214,1748203848841,-577.13,0.0002,2]
[362337215,1748203849165,-180.89,0.00019033,2]
[362337216,1748203849175,-918.532276,0.00019898,2]
[362337217,1748203849185,-500.0,0.00019989,2]
[362337218,1748203849195,-175.86771039,0.00019989,2]
[362337219,1748203849204,-500.0,0.00019989,2]
[362337220,1748203849214,-82.8757837,0.00019989,2]
[362337221,1748203849226,-277.97063424,0.00019989,2]
[362337222,1748203849242,-139.15358206,0.00019989,2]
[362337223,1748203849252,-420.0,0.00019992,2]
[362337224,1748203849262,-420.0,0.00019993,2]
[362337225,1748203849271,-1159.32760977,0.0002,2]
[362337226,1748203849282,-476.3514717,0.0002,2]
[362337227,1748203930804,189.256372,0.00023,30]
[362337230,1748203951938,208.23859,0.00023,30]
[362337233,1748204050893,250.0,0.00015,2]
[362337234,1748204052779,-162.20371821,0.00017,2]
[362337237,1748204289858,-137.79628179,0.00017,2]
[362337238,1748204289881,-49.34371821,0.00017,2]